Cogmind - Beta 16 @@@ ROGUE MODE // 2026.01.20 @ 09:00:11 // Winter2019/RPGLIKE Player: Gallgagger Result: Self-destructed Performance ------------- Evolutions (3) 1500 Regions Visited (8) 1600 Robots Destroyed (0) 0 Value Destroyed (0) 0 Prototype IDs (23) 460 Alien Tech Used (0) 0 Bonus (1634) 1634 TOTAL SCORE: 5194 Bonus ------- Pacifist 634 Entered Garrisons 200 Entered DSFs 500 Aligned with FarCom 300 Cogmind --------- Core Integrity 136/600 Matter 240/300 Energy 223/240 System Corruption 0% Temperature Cool (0) Movement Flying (34) Location -7/Garrison Parts ------- > --- POWER (2) -------- Nuclear Core > --- PROPULSION (3) --- Flight Unit Flight Unit Xenon Bombardment Thruster > --- UTILITY (4) ------ Improved Terrain Scanner Transmission Jammer Cloak of Protection > --- WEAPON (1) ------- (None) > --- INVENTORY (1) ---- Authchip [Device] Peak State ------------ > --- POWER ------------ Nuclear Core > --- PROPULSION ------- Flight Unit Flight Unit Xenon Bombardment Thruster > --- UTILITY ---------- Improved Terrain Scanner Transmission Jammer Cloak of Protection > --- WEAPON ----------- (None) > --- INVENTORY -------- Flight Unit [Rating: 24] Favorites ----------- Power Ion Engine Engine Ion Engine Power Core Nuclear Core Propulsion Flight Unit Wheel Compact Wheel Flight Unit Flight Unit Utility Cloak of Protection Device Cloak of Protection Protection Reflective Plating Weapon Small Laser Energy Gun Small Laser Build | -11 -10 -10 -10 -9 -8 -7 -7 -7 ------- Run | Yrd Mat Min Exi Min Mat Fac DSF Gar Slots Evolved 6 | . . 1 2 . 2 1 . . Power 1 | . . . 1 . . . . . Propulsion 2 | . . 1 . . 1 . . . Utility 3 | . . . 1 . 1 1 . . Weapon . | . . . . . . . . . Parts Attached 13 | 3 . 2 1 2 3 2 . . Power 3 | 1 . . . 1 1 . . . Engine 2 | 1 . . . 1 . . . . Core 1 | . . . . . 1 . . . Reactor . | . . . . . . . . . Propulsion 5 | 1 . 2 . . 1 1 . . Treads . | . . . . . . . . . Leg . | . . . . . . . . . Wheel 1 | 1 . . . . . . . . Hover . | . . . . . . . . . Flight 4 | . . 2 . . 1 1 . . Utility 4 | . . . 1 1 1 1 . . Device 3 | . . . 1 1 . 1 . . Storage . | . . . . . . . . . Processor . | . . . . . . . . . Hackware . | . . . . . . . . . Protection 1 | . . . . . 1 . . . Artifact . | . . . . . . . . . Weapon 1 | 1 . . . . . . . . Energy Gun 1 | 1 . . . . . . . . Energy Cannon . | . . . . . . . . . Ballistic Gun . | . . . . . . . . . Ballistic Cannon . | . . . . . . . . . Launcher . | . . . . . . . . . Special Weapon . | . . . . . . . . . Impact Weapon . | . . . . . . . . . Slashing Weapon . | . . . . . . . . . Piercing Weapon . | . . . . . . . . . Special Melee Weapon . | . . . . . . . . . Unidentified Prototypes . | . . . . . . . . . Parts Lost . | . . . . . . . . . Power . | . . . . . . . . . Propulsion . | . . . . . . . . . Utility . | . . . . . . . . . Weapon . | . . . . . . . . . Highest Loss Streak . | . . . . . . . . . To Critical Strikes . | . . . . . . . . . Average Backups . | . . . . . . . 1 1 Power . | . . . . . . . . . Propulsion . | . . . . . . . . . Utility . | . . . . . . . . 1 Weapon . | . . . . . . . . . Tool/Special . | . . . . . . . . . Unused Backups 1 | . . . . . . . . 1 Power . | . . . . . . . . . Propulsion . | . . . . . . . . . Utility 1 | . . . . . . . . 1 Weapon . | . . . . . . . . . Tool/Special . | . . . . . . . . . Average Slot Usage (%) 67 | . 75 77 69 58 66 70 70 70 Engine 9 | . 25 22 17 12 2 . . . Core 4 | . . . . . 8 10 10 10 Wheel 3 | . 25 14 . . . . . . Flight 27 | . . 17 34 28 31 30 30 30 Device 17 | . . . 6 17 22 29 30 30 Energy Gun 4 | . 25 22 11 . . . . . Peak Build Rating 24 | 3 3 4 12 14 21 24 24 24 Average Rating 13 | 2 3 3 7 11 16 23 24 24 On Entrance 11 | . 3 3 4 11 14 17 24 24 Avg Prop Armor Cover (%) 5 | . . 7 . . . 2 . . Naked Turns . | . . . . . . . . . Heaviest Build 17 | 6 6 6 13 13 16 17 17 17 Greatest Support 24 | 16 21 21 13 13 17 24 24 24 Greatest Overweight (x) 1 | 1 . . . . . . . . Average Overweight (x) . | . . . . . . . . . Largest Inventory Capacity 1 | . 1 1 1 1 1 1 1 1 Average Capacity . | . 1 1 1 1 1 1 1 1 Most Carried 1 | . . 1 1 1 1 1 1 1 Average Carried . | . . . . . . . . 1 Final Capacity 1 | . 1 1 1 1 1 1 1 1 Final Carried 1 | . . 1 . 1 . 1 1 1 Class Distribution -------------------- 45% | Mutant 31% | Scavenger-Scout 19% | Infiltrator-Scout Dominant Class ---------------- Mutant | -10/Materials Mutant | -10/Mines Mutant | -10/Exiles Mutant | -9/Mines Scavenger-Scout | -8/Materials Infiltrator-Scout | -7/Factory Infiltrator-Scout | -7/DSF Infiltrator-Scout | -7/Garrison Resources | -11 -10 -10 -10 -9 -8 -7 -7 -7 ----------- Run | Yrd Mat Min Exi Min Mat Fac DSF Gar Matter Collected 264 | 77 . 54 . 133 . . . . Remotely . | . . . . . . . . . Salvage Created . | . . . . . . . . . Parts . | . . . . . . . . . Haulers Intercepted . | . . . . . . . . . Recyclers Shooed . | . . . . . . . . . Parts Field Recycled . | . . . . . . . . . Retrieved Matter . | . . . . . . . . . Parts Self-Destructed . | . . . . . . . . . Prevented . | . . . . . . . . . Parts Restored . | . . . . . . . . . Kills | -11 -10 -10 -10 -9 -8 -7 -7 -7 ------- Run | Yrd Mat Min Exi Min Mat Fac DSF Gar Combat Hostiles Destroyed . | . . . . . . . . . Classes Destroyed . | . . . . . . . . . Best Kill Streak . | . . . . . . . . . Combat Bots Only . | . . . . . . . . . Max Kills in Single Turn . | . . . . . . . . . Gunslinging . | . . . . . . . . . Exploded . | . . . . . . . . . Melee . | . . . . . . . . . Uniques/NPCs Destroyed . | . . . . . . . . . Combat | -11 -10 -10 -10 -9 -8 -7 -7 -7 -------- Run | Yrd Mat Min Exi Min Mat Fac DSF Gar Hostile Shots Fired 102 | . . 63 . 13 5 . 4 17 Missed 42 | . . 25 . 5 4 . 2 6 Hits 60 | . . 38 . 8 1 . 2 11 Melee 2 | . . . . . . . 2 . Projectile 58 | . . 38 . 8 1 . . 11 AOE 1 | . . . . . . . 1 . Critical Strikes 2 | . . 1 . 1 . . . . Damage Taken 570 | . . 289 . 92 10 . 47 132 Core 464 | . . 241 . 73 8 . 36 106 Absorbed by Shields 41 | . . . . . . . . 41 Redirected to Core 328 | . . 142 . 60 8 . 36 82 Core Remaining (%) 64 | 100 . . . 47 46 . . . Volleys Fired . | . . . . . . . . . Largest . | . . . . . . . . . Hottest . | . . . . . . . . . Shots Fired . | . . . . . . . . . Gun . | . . . . . . . . . Cannon . | . . . . . . . . . Launcher . | . . . . . . . . . Special . | . . . . . . . . . Kinetic . | . . . . . . . . . Thermal . | . . . . . . . . . Explosive . | . . . . . . . . . Electromagnetic . | . . . . . . . . . Robot Hit Streak . | . . . . . . . . . Robot Miss Streak . | . . . . . . . . . Penetration Max . | . . . . . . . . . Secondary Targets . | . . . . . . . . . Shots Hit Robots . | . . . . . . . . . Core Hits . | . . . . . . . . . Critical Kills . | . . . . . . . . . Critical Parts Destroyed . | . . . . . . . . . Critical Strikes . | . . . . . . . . . Melee Attacks . | . . . . . . . . . Impact . | . . . . . . . . . Slashing . | . . . . . . . . . Piercing . | . . . . . . . . . Sneak Attacks . | . . . . . . . . . Combat Hostiles . | . . . . . . . . . Follow-up Attacks . | . . . . . . . . . Damage Inflicted 1 | . . 1 . . . . . . Guns . | . . . . . . . . . Cannons . | . . . . . . . . . Explosions . | . . . . . . . . . Melee . | . . . . . . . . . Ramming 1 | . . 1 . . . . . . Kinetic . | . . . . . . . . . Thermal . | . . . . . . . . . Explosive . | . . . . . . . . . Electromagnetic . | . . . . . . . . . Impact . | . . . . . . . . . Slashing . | . . . . . . . . . Piercing . | . . . . . . . . . Highest Corruption . | . . . . . . . . . Average Corruption . | . . . . . . . . . Corruption Purged . | . . . . . . . . . Corruption Blocked . | . . . . . . . . . Overload Shots . | . . . . . . . . . Overflow Damage . | . . . . . . . . . Projectiles . | . . . . . . . . . Explosions . | . . . . . . . . . Melee . | . . . . . . . . . Knockbacks . | . . . . . . . . . Impact . | . . . . . . . . . Kinetic . | . . . . . . . . . Secondary . | . . . . . . . . . Self-Inflicted Damage . | . . . . . . . . . Shots . | . . . . . . . . . Rammed 2 | . 1 1 . . . . . . Targets Rammed 2 | . 1 1 . . . . . . Kicked . | . . . . . . . . . Crushed . | . . . . . . . . . Highest Temperature 6 | . . . . 6 . . . . Average Temperature 5 | . . . . 5 . . . . Received Heat Transfer 40 | . . . . 40 . . . . Siege Activations . | . . . . . . . . . Martial Activations . | . . . . . . . . . Shielding Activations . | . . . . . . . . . Robots Disrupted . | . . . . . . . . . Combat Hostiles . | . . . . . . . . . Robots Corrupted . | . . . . . . . . . Combat Hostiles . | . . . . . . . . . Parts Fried . | . . . . . . . . . Impact Corruptions . | . . . . . . . . . Robots Melted . | . . . . . . . . . Combat Hostiles . | . . . . . . . . . Parts Melted . | . . . . . . . . . Heat Transferred . | . . . . . . . . . Parts Sabotaged . | . . . . . . . . . Parts Stolen . | . . . . . . . . . Parts Stripped . | . . . . . . . . . Power Chain Reactions . | . . . . . . . . . Alert | -11 -10 -10 -10 -9 -8 -7 -7 -7 ------- Run | Yrd Mat Min Exi Min Mat Fac DSF Gar Maximum Alert Level . | . . . . . . . . . Low Security (%) 100 | 100 100 100 . 100 100 100 100 100 Level 1 . | . . . . . . . . . Level 2 . | . . . . . . . . . Level 3 . | . . . . . . . . . Level 4 . | . . . . . . . . . Level 5 . | . . . . . . . . . High Security . | . . . . . . . . . Max Security . | . . . . . . . . . Peak Influence 60 | . . 35 . 60 15 . . . Initial . | . . . . . . . . . Average 3 | . . 4 . 10 1 . . . Influence Increases 150 | . . 45 . 90 15 . . . Partial Spotted 15 | . . . . . 15 . . . Lose Combat Pursuer 135 | . . 45 . 90 . . . . Influence Decreases 150 | . . 20 25 90 15 . . . Entered New Map 25 | . . . 25 . . . . . Time Decay 105 | . . 20 . 70 15 . . . Lost Ally 20 | . . . . 20 . . . . Squads Dispatched 4 | . 2 . . . 1 . 1 . Investigation 1 | . 1 . . . . . . . Extermination . | . . . . . . . . . Reinforcement 3 | . 1 . . . 1 . 1 . Assault . | . . . . . . . . . Garrison . | . . . . . . . . . Intercept . | . . . . . . . . . Searches Triggered . | . . . . . . . . . Construction Impeded . | . . . . . . . . . Haulers Reinforced . | . . . . . . . . . Active Scanning Responses . | . . . . . . . . . Cargo Convoy Interrupts . | . . . . . . . . . Stealth | -11 -10 -10 -10 -9 -8 -7 -7 -7 --------- Run | Yrd Mat Min Exi Min Mat Fac DSF Gar Distress Signals 1 | . . . . . 1 . . . Communications Jammed . | . . . . . . . . . Distress Signals . | . . . . . . . . . Times Spotted 35 | . 2 4 . 11 8 . 3 7 Peak Tracking Total 10 | . 1 3 . 7 10 . 3 6 Tactical Retreats 5 | . . 2 . 3 . . . . Traps | -11 -10 -10 -10 -9 -8 -7 -7 -7 ------- Run | Yrd Mat Min Exi Min Mat Fac DSF Gar Traps Triggered 4 | . 1 . . . . . . 3 Indirectly . | . . . . . . . . . Trap Hack Attempts . | . . . . . . . . . Triggered . | . . . . . . . . . Disarmed . | . . . . . . . . . Reprogrammed . | . . . . . . . . . Reused . | . . . . . . . . . Traps Extracted . | . . . . . . . . . Installed . | . . . . . . . . . Triggered . | . . . . . . . . . Most Traps Carried 1 | . . 1 1 . . . . . Machines | -11 -10 -10 -10 -9 -8 -7 -7 -7 ---------- Run | Yrd Mat Min Exi Min Mat Fac DSF Gar Machines Disabled . | . . . . . . . . . Max in Single Turn . | . . . . . . . . . Machines Repaired . | . . . . . . . . . Machines Dismantled . | . . . . . . . . . Machines Sabotaged . | . . . . . . . . . Overloaded Fab Kills . | . . . . . . . . . Hacking | -11 -10 -10 -10 -9 -8 -7 -7 -7 --------- Run | Yrd Mat Min Exi Min Mat Fac DSF Gar Machines Accessed 4 | . . . 1 . 1 2 . . Terminals 3 | . . . . . 1 2 . . Fabricators . | . . . . . . . . . Repair Stations . | . . . . . . . . . Recycling Units . | . . . . . . . . . Scanalyzers . | . . . . . . . . . Garrison Access . | . . . . . . . . . Total Hacks 5 | . . . 1 . 1 3 . . Successful 3 | . . . 1 . . 2 . . Failed 2 | . . . . . 1 1 . . Catastrophic 1 | . . . . . 1 . . . Database Lockouts . | . . . . . . . . . Manual 5 | . . . 1 . 2 2 . . Terminals 4 | . . . . . 1 3 . . Fabricators . | . . . . . . . . . Repair Stations . | . . . . . . . . . Recycling Units . | . . . . . . . . . Scanalyzers . | . . . . . . . . . Garrison Access . | . . . . . . . . . Terminal Hacks 2 | . . . 1 . . 1 . . Open DSF 1 | . . . . . . 1 . . Proto ID Catalog 1 | . . . 1 . . . . . Fabricator Hacks . | . . . . . . . . . Repair Station Hacks . | . . . . . . . . . Recycling Unit Hacks . | . . . . . . . . . Scanalyzer . | . . . . . . . . . Garrison Access Hacks . | . . . . . . . . . Unauthorized Hacks 1 | . . . . . . 1 . . Terminals 1 | . . . . . . 1 . . Botnet 1 | . . . . . . 1 . . Fabricators . | . . . . . . . . . Repair Stations . | . . . . . . . . . Recycling Units . | . . . . . . . . . Scanalyzers . | . . . . . . . . . Garrison Access . | . . . . . . . . . Data Cores Recovered . | . . . . . . . . . Used . | . . . . . . . . . Hacking Detections 2 | . . . . . 1 1 . . Full Trace Events . | . . . . . . . . . Feedback Events . | . . . . . . . . . Feedback Blocked . | . . . . . . . . . Robot Schematics Acquired . | . . . . . . . . . Robots Built . | . . . . . . . . . Authchips . | . . . . . . . . . Time . | . . . . . . . . . Total Robot Build Rating . | . . . . . . . . . Part Schematics Acquired . | . . . . . . . . . Parts Built . | . . . . . . . . . Authchips . | . . . . . . . . . Time . | . . . . . . . . . Total Part Build Rating . | . . . . . . . . . Part Studies Acquired . | . . . . . . . . . Parts Repaired . | . . . . . . . . . Time . | . . . . . . . . . Parts Recycled . | . . . . . . . . . Recycled Matter . | . . . . . . . . . Retrieved Matter . | . . . . . . . . . Retrieved Components . | . . . . . . . . . Parts Scanalyzed . | . . . . . . . . . Part Schematics Acquired . | . . . . . . . . . Parts Damaged . | . . . . . . . . . Bothacking | -11 -10 -10 -10 -9 -8 -7 -7 -7 ------------ Run | Yrd Mat Min Exi Min Mat Fac DSF Gar Used RIF Installer . | . . . . . . . . . Robots Hacked . | . . . . . . . . . Non-combat . | . . . . . . . . . Combat . | . . . . . . . . . Robot Hacks Applied . | . . . . . . . . . Relay Couplers Released . | . . . . . . . . . Fabnet Peak Effective % . | . . . . . . . . . Robots Rewired . | . . . . . . . . . Allies Hacked . | . . . . . . . . . Hacks Repelled . | . . . . . . . . . Allies | -11 -10 -10 -10 -9 -8 -7 -7 -7 -------- Run | Yrd Mat Min Exi Min Mat Fac DSF Gar Total Allies 1 | . . . . 1 . . . . Largest Group 1 | . . . . 1 . . . . Highest-Rated Group 31 | . . . . 31 . . . . Highest-Rated Ally 31 | . . . . 31 . . . . Total Orders . | . . . . . . . . . Ally Attacks 6 | . . . . 6 . . . . Total Damage 43 | . . . . 43 . . . . Kills . | . . . . . . . . . Allies Corrupted . | . . . . . . . . . Allies Melted . | . . . . . . . . . Intel | -11 -10 -10 -10 -9 -8 -7 -7 -7 ------- Run | Yrd Mat Min Exi Min Mat Fac DSF Gar Active Infowar (turns) 899 | . . . 41 293 292 171 43 59 Terrain 581 | . . . . 65 292 171 43 10 Cloaking 885 | . . . 41 279 292 171 43 59 Jamming 84 | . . . . . . 35 . 49 Robot Analysis Total . | . . . . . . . . . Derelict Logs Recovered 3 | . . 2 . 1 . . . . Drone Launches . | . . . . . . . . . Drone Recoveries . | . . . . . . . . . Exploration | -11 -10 -10 -10 -9 -8 -7 -7 -7 ------------- Run | Yrd Mat Min Exi Min Mat Fac DSF Gar Turns Passed 1165 | 29 61 133 84 293 292 171 43 59 Spaces Moved 2072 | 27 61 234 221 687 419 229 122 72 Core 31 | 7 . 24 . . . . . . Treads . | . . . . . . . . . Legs . | . . . . . . . . . Wheels 142 | 20 61 61 . . . . . . Hover . | . . . . . . . . . Flight 1899 | . . 149 221 687 419 229 122 72 Fastest Speed 34 | 50 100 37 37 37 34 34 34 34 Average Speed 40 | 92 100 54 37 37 34 34 34 34 Slowest Speed 100 | 100 100 100 37 37 37 37 34 34 Overloaded Moves . | . . . . . . . . . Propulsion Burnouts . | . . . . . . . . . Robots Hopped 33 | . . 3 . 14 10 3 3 . Potential Cave-ins . | . . . . . . . . . Cave-ins Triggered . | . . . . . . . . . Exploration Rate (%) 40 | 4 23 58 61 83 30 9 80 18 Regions Visited 8 Branch Regions 3 Pre-discovered Areas . | . . . . . . . . . Known Exits Taken 1 | . . . . . . 1 . . Unknown Exits Taken 6 | 1 1 1 1 1 1 . . . Scrap Searched 2 | . . 1 . 1 . . . . Spaces Dug . | . . . . . . . . . Terrain Destroyed . | . . . . . . . . . Melee . | . . . . . . . . . Projectile . | . . . . . . . . . AOE . | . . . . . . . . . Terrain Rammed . | . . . . . . . . . Walls Destroyed . | . . . . . . . . . Machines Disabled . | . . . . . . . . . Actions | -11 -10 -10 -10 -9 -8 -7 -7 -7 --------- Run | Yrd Mat Min Exi Min Mat Fac DSF Gar Total 2353 | 29 61 234 223 710 554 316 120 106 Wait 264 | . . . . 34 141 89 . . Move 2000 | 26 60 227 220 658 399 222 116 72 Hop 31 | . . 3 . 14 9 3 2 . Pick Up 3 | . . 1 . 1 . . 1 . Fast Attach 10 | 3 . 1 1 2 2 1 . . Attach 1 | . . . . . 1 . . . Detach . | . . . . . . . . . Swap 2 | . . 1 . . . 1 . . Drop 6 | . . . 2 1 2 . 1 . Fire . | . . . . . . . . . Melee . | . . . . . . . . . Ram 2 | . 1 1 . . . . . . Kick . | . . . . . . . . . Crush . | . . . . . . . . . Escape Stasis 34 | . . . . . . . . 34 Rewire . | . . . . . . . . . Trap . | . . . . . . . . . Miscellaneous . | . . . . . . . . . Route ------- -11/Scrapyard -10/Materials -10/Mines (discovered 3 exits: [*Mat] / *Exi / Sub) -10/Exiles -9/Mines (discovered 2 exits: *Mat x2) -8/Materials (discovered 2 exits: *Fac / [*Sto]) -7/Factory (discovered 2 exits: [*Fac] / DSF) -7/DSF -7/Garrison History --------- Turn | Location | Event 2 | -11/Scrapyard | Discovered new exit (range 16) 30 | -11/Scrapyard | Entered Materials 74 | -10/Materials | Discovered new exit (range 16) 91 | -10/Materials | Entered Mines 95 | -10/Mines | Discovered new exit (range 14) 167 | -10/Mines | Upgraded with Propulsion slot (x1) 183 | -10/Mines | Found a hidden stash of uninstalled traps 209 | -10/Mines | Identified exit to Subcaves 222 | -10/Mines | Deemed a non-threat by the Exiles lab entrance 223 | -10/Mines | Discovered new exit (range 5) 224 | -10/Mines | Entered Exiles 234 | -10/Exiles | Met 8R-AWN 240 | -10/Exiles | Met EX-HEX 250 | -10/Exiles | Met EX-BIN 254 | -10/Exiles | Aligned with FarCom system 255 | -10/Exiles | Given EX-Vault access code 265 | -10/Exiles | Opened EX-Vault 267 | -10/Exiles | Found Cloak of Protection 269 | -10/Exiles | Upgraded with Power slot (x1) 269 | -10/Exiles | Upgraded with Utility slot (x1) 278 | -10/Exiles | Warned to stay clear of 0b10 Research branches 291 | -10/Exiles | Met EX-DEC 304 | -10/Exiles | Discovered new exit (range 14) 308 | -10/Exiles | Left Exiles lab with Cloak of Protection 308 | -10/Exiles | Entered Mines 311 | -9/Mines | Received a Mining Laser from a helpful Derelict 316 | -9/Mines | Build established: Mutant 325 | -9/Mines | Met a Derelict bent on vengeance 341 | -9/Mines | Discovered new exit (range 14) 343 | -9/Mines | Assembled infested the area 374 | -9/Mines | A weapon hastily lodged in a ceiling crevice suddenly fell to the ground 432 | -9/Mines | Discovered new exit (range 11) 510 | -9/Mines | Learned Materials emergency access door positions 541 | -9/Mines | Core integrity fell below 50% 601 | -9/Mines | Entered Materials 602 | -8/Materials | Core integrity fell below 50% 603 | -8/Materials | Reached level 2 616 | -8/Materials | Upgraded with Propulsion slot (x1) 616 | -8/Materials | Upgraded with Utility slot (x1) 873 | -8/Materials | Build established: Scavenger-Scout 877 | -8/Materials | Discovered new exit (range 9) 892 | -8/Materials | Discovered new exit (range 3) 893 | -8/Materials | Reached level 3 893 | -8/Materials | Entered Factory 894 | -7/Factory | Core integrity fell below 50% 895 | -7/Factory | Reached level 4 922 | -7/Factory | Upgraded with Utility slot (x1) 953 | -7/Factory | Discovered new exit (range 13) 1064 | -7/Factory | Identified exit to DSF 1064 | -7/Factory | Entered DSF 1099 | -7/DSF | Discovered new exit (range 11) 1107 | -7/DSF | Entered Garrison 1107 | -7/Garrison | Reached level 5 1166 | -7/Garrison | Self-destructed Last Messages --------------- 01140_ Field strength at 30. 01141_ Field strength at 23. 01142_ Field strength at 16. 01143_ Field strength at 9. 01144_ Field strength at 2. 01145_ Stasis field depleted. 01158_ Triggered Stasis Trap. 01158_ A bubble of rippling energy engulfs the area. 01158_ Field strength at 93. 01158_ Field strength at 86. 01159_ Field strength at 74. 01160_ Field strength at 67. 01161_ Field strength at 60. 01162_ Field strength at 49. 01163_ Field strength at 37. 01164_ C-45 Heavy ARC bursts open, deploying its payload. 01164_ S-27 Virus unfolds itself. 01164_ Field strength at 26. 01165_ Field strength at 1. 01165_ Stasis field depleted. Map ----- +----------------------------------------------------+ | ?????????????????????????????????????????????????? | | ?????????????????????????????????????????????????? | | ?????????????????????????????????????????????????? | | ?????????????????????????????????????????????????? | | ?????????????????????????????????????????????????? | | ?????????????????????????????????????????????????? | | ?????????????????????????????????????????????????? | | ?????????????????????????????????????????????????? | | ?????????????????????????????????????????????????? | | ?????????????????????????????????????????????????? | | ?????????????????????????????????????????????????? | | ?????????????????????????????????????????????????? | | ???????????????ggg???????????????????????????????? | | ?????????????????????????????????????????????????? | | ?????????????????????????????????????????????????? | | ?????????????????????????????????????????????????? | | ?????????????????????????????????????????????????? | | ?????????????????????????????????????????????????? | | ?????????????????????????????????????????????????? | | ?????????????????????????????????????????????????? | | ??????????????h??????????????????????????????????? | | ????????????????????????g????????????????????????? | | ????????????????????????g????????????????????????? | | ???????????????????# ?s??????????????????????????? | | ?????????????# ##s ############??????????????? | | ?????????? s s @ #??????????????? | | ?????????? #??????????????? | | ?????????? ss ^ #??????????????? | | ??????????? ##""""###+##s###### #??????????????? | | ??????????????????? ?? ?????# #??????????????? | | ??????????????????##???##?????# #??????????????? | | ??????????????????????????????# #??????????????? | | ??????????????????????????????# #??????????????? | | ??????????????????????????????# #??????????????? | | ??????????????????????????????# ######## #????? | | ??????????????????????????????# #????? | | ??????????????????????????????# #????? | | ??????????????????????????????# ####"""####????? | | ??????????????????????????????# #??????????????? | | ??????????????????????????????# #??????????????? | | ??????????????????????????????# #??????????????? | | ??????????????????????????????# #??????????????? | | ??????????????????????????????# #??????????????? | | ??????????????????????????????# #??????????????? | | ??????????????????????????????# #??????????????? | | ??????????????????????????????# ################ | | ??????????????????????????????# | | ??????????????????????????????# | | ??????????????????????????????# | | ??????????????????????????????# ################# | +----------------------------------------------------+ Best States ------------- Heat Dissipation 25 Energy Generation 24 Energy Capacity 250 Matter Stores 300 Matter Capacity 300 Sight Range 16 Terrain Scan Range 16 Terrain Scan Density 510 Jamming Range 12 Cloak Strength 5 Armor Coverage 150 Resistance: TH 10 Evasion (%) 63 Offensive Hacking 10 Defensive Hacking 5 Authchip Count 1 Item Schematics ----------------- None Robot Schematics ------------------ None Fabricated ------------ Nothing Repaired ---------- Nothing Studied --------- None Alien Tech Used ----------------- None Achievements -------------- None Challenges ------------ None RPGLIKE | -11 -10 -10 -10 -9 -8 -7 -7 -7 --------- Run | Yrd Mat Min Exi Min Mat Fac DSF Gar Levels Raised 4 | . . . . . 2 1 . 1 XP Earned 9517 | 3000 . 500 350 635 1682 1500 1250 600 XP Spent 7450 | . 350 500 1850 . 1740 3010 . . Upgrades 19 | . 2 1 4 . 4 8 . . Power Slot 1 | . . . 1 . . . . . Propulsion Slot 2 | . . 1 . . 1 . . . Utility Slot 3 | . . . 1 . 1 1 . . Energy Generation 2 | . . . 2 . . . . . Mass Support 2 | . 1 . . . . 1 . . Inventory Capacity 1 | . 1 . . . . . . . Terrain Scan Density 5 | . . . . . 2 3 . . Hack Attack % 2 | . . . . . . 2 . . Hack Defense % 1 | . . . . . . 1 . . Protomatter Created . | . . . . . . . . . Protomatter Decayed 79 | . . . . 79 . . . . Game ------ Seed RegenerativeOpticalTerrabomb Manual? 1 Play Time 00:11:51 Cumulative 558.0 hours Start 2026.01.20 @ 08:43:49 End 2026.01.20 @ 09:00:11 Sessions 1 Manual Loads 0 Difficulty Rogue Special Mode Winter2019/RPGLIKE Game No. 218 Rogue 64 Adventurer 154 Explorer 0 Win Type - Total 20 Types 4/4/3/3/2/1/0/1/1/1 Lore% 95 Gallery% 88 Achievement% 61 Wizard Run 0 Options --------- Layout 0 ASCII 0 Keyboard 0 Movement Numpad Keybinds 0 Fullscreen 2 Font 18/SmallcapsGlow Map View 76x50 Zoom Use 0% Tactical HUD 1 Map Filters NONE Filters NONE Steam 1 RUN: 382d9276-fbb8-4d4f-bc69-c0e5e6f6863b